{"text_format":"1","workbook":"xlsx","n_sheets":2,"sheets":["Feuil1","Aide"],"not_rendered":{"charts":0,"images":0,"macros":1,"external_links":0,"defined_names":1,"comments":1,"pivot_tables":0},"unopened":[],"bounds":{"document_bytes":16777216,"sheet_cells":100000,"rows_first":2000,"rows_last":500,"rows_between":2000,"halvings":0,"cell_chars":16384,"cell_head_chars":4096},"cells_cut":0,"cells_raw":0,"read":"whole","date_system":"1900"}

{"sheet":"Feuil1","index":0,"n_rows":59,"n_cols":18,"rows_kept":59,"cut":false,"hidden":false,"merged":[[8,0,8,5]]}
["acronyme","Licence LPISI",null,null,"repertoire:","/Users/dominiquesoudiere/ownCloud/Scodoc",null,null,null,"Copier  depuis la case J1 les infos de la maquette puis mettre au propre (les accents seront retirés)"]
["type_parcours",100,null,null,null,null,null,null,null,"Lire les bulles en commentaires"]
["titre_officiel","LICENCE PROFESSIONNELLE INSPECTION DE SITES INDUSTRIELS",null,null,null,null,null,null,null,"Remplir les parties jaunes en respectant les commentaires"]
["formation_code","FCOD1",null,null,null,null,null,null,null,"Mettre U M G ou rien dans colonne I"]
["version",1,null,null,null,null,null,null,null,"Appuyez sur le bouton pour lancer la création du fichier XML"]
["titre","LICENCE PROFESSIONNELLE INSPECTION DE SITES INDUSTRIELS",null,null,null,null,null,null,null,"Le fichier se trouve dans c:\\apogee sous le nom maquette.xml vous pouvez l'importer dans Scodoc"]
["formation_id","LPISI"]
["UE",null,null,null,null,"Matière",null,null,null,"Module"]
["Ces colonnes sont calculées",null,null,null,null,null,null,null,null,"code apogée","Libellé Court ","Libellé Long ","COEF","ECTS","CM","TD","TP","Libellé Court "]
["acronyme UE","ue_code","type UE","numero UE","titre UE","titre (vide=ss/mat)","numero unique","semestre_id","U si matière M si Mat chapeau      rien sinon","code_apogee","code","titre","coefficient","ects sauf sur matière","heures_cours","heures_td","heures_tp","abbrev"]
[{"$f":"IF(I11=\"U\",\"UE\"&RIGHT(J11,2),\"\")","v":"UEI0"},{"$f":"A11","v":"UEI0"},0,{"$f":"IF(A11=\"\",\"\",G11)","v":10},{"$f":"IF(A11=\"\",\"\",L11)","v":"UE0. Modules d’adaptation"},{"$f":"IF(I11=\"\",\"\",L11)","v":"UE0. Modules d’adaptation"},10,1,"U","LPISI0","LPISI0","UE0. Modules d’adaptation",null,null,null,null,null,{"$f":"L11","v":"UE0. Modules d’adaptation"}]
[{"$f":"IF(I12=\"U\",\"UE\"&RIGHT(J12,2),\"\")","v":""},{"$f":"A12","v":""},0,{"$f":"IF(A12=\"\",\"\",G12)","v":""},{"$f":"IF(A12=\"\",\"\",L12)","v":""},{"$f":"IF(I12=\"\",\"\",L12)","v":"Conception et dessin industriel"},{"$f":"G11+10","v":20},1,"M","LPISI01","LPISI01","Conception et dessin industriel",0,null,null,24,null,{"$f":"L12","v":"Conception et dessin industriel"}]
["UEI1","UEI1",0,30,"UE1. Création des équipements et/ou installations",{"$f":"IF(I13=\"\",\"\",L13)","v":"UE1. Création des équipements et/ou installations"},{"$f":"G12+10","v":30},1,"U","LPISI1","LPISI1","UE1. Création des équipements et/ou installations",10,11,null,null,null,"UE1. Création des équipements et/ou installations"]
["","",0,"","","Résistance des Matériaux",40,1,"M","LPISI11","LPISI11","Résistance des Matériaux",2,2,null,30,null,"Résistance des Matériaux"]
["","",0,"","","Métallurgie - généralités, pression et soudage",50,1,"M","LPISI12","LPISI12","Métallurgie - généralités, pression et soudage",4,5,null,70,null,"Métallurgie - généralités, pression et soudage"]
["","",0,"","","Conception, chaudronnerie/tuyauterie",60,1,"M","LPISI13","LPISI13","Conception, chaudronnerie/tuyauterie",4,4,null,36,null,"Conception, chaudronnerie/tuyauterie"]
["UEI2","UEI2",0,70,"UE2. Inspection des équipements et/ou installations","UE2. Inspection des équipements et/ou installations",70,1,"U","LPISI2","LPISI2","UE2. Inspection des équipements et/ou installations",15,17,null,null,null,"UE2. Inspection des équipements et/ou installations"]
["","",0,"","","Contrôles non destructifs -généralités et spécialités",80,1,"M","LPISI21","LPISI21","Contrôles non destructifs -généralités et spécialités",4,4,null,72,null,"Contrôles non destructifs -généralités et spécialités"]
["","",0,"","","Corrosion, dégradation des matériaux",90,1,"M","LPISI22","LPISI22","Corrosion, dégradation des matériaux",1,2,null,28,null,"Corrosion, dégradation des matériaux"]
["","",0,"","","Réglementation et suivi de fabrication des ESP ",100,1,"M","LPISI23","LPISI23","Réglementation et suivi de fabrication des ESP ",5,6,null,48,null,"Réglementation et suivi de fabrication des ESP "]
["","",0,"","","Plan d'inspection - S.I.R., R.B.I. et aptitude au service des équipements",110,1,"M","LPISI24","LPISI24","Plan d'inspection - S.I.R., R.B.I. et aptitude au service des équipements",3,3,null,27,null,"Plan d'inspection - S.I.R., R.B.I. et aptitude au service des équipements"]
["","",0,"","","Chimie",120,1,"M","LPISI25","LPISI25","Chimie",2,2,null,30,null,"Chimie"]
["UEI3","UEI3",0,130,"UE3. Compétences managériales","UE3. Compétences managériales",130,1,"U","LPISI3","LPISI3","UE3. Compétences managériales",7,6,null,null,null,"UE3. Compétences managériales"]
["","",0,"","","Anglais technique de l'inspection",140,1,"M","LPISI31","LPISI31","Anglais technique de l'inspection",2,2,null,40,null,"Anglais technique de l'inspection"]
["","",0,"","","Ressources humaines, communication, rapport technique",150,1,"M","LPISI32","LPISI32","Ressources humaines, communication, rapport technique",3,2,null,27,null,"Ressources humaines, communication, rapport technique"]
["","",0,"","","Méthodes d'analyses, qualité et sécurité",160,1,"M","LPISI33","LPISI33","Méthodes d'analyses, qualité et sécurité",2,2,null,18,null,"Méthodes d'analyses, qualité et sécurité"]
["UEI4","UEI4",2,170,"UE4. Projet et stages","UE4. Projet et stages",170,1,"U","LPISI4","LPISI4","UE4. Projet et stages",15,26,null,null,null,"UE4. Projet et stages"]
["","",2,"","","Projet tutoré",180,1,"M","LPISI41","LPISI41","Projet tutoré",5,6,null,85,null,"Projet tutoré"]
["","",2,"","","Stage",190,1,"M","LPISI42","LPISI42","Stage",10,20,null,null,null,"Stage"]
["UEI5","UEI5",1,200,"Sport culture","Sport culture",200,1,"U","LPISI5","DM4G5","Sport culture",1,null,null,null,null,"Sport culture"]
["","",1,"","","Bonus activité culturelle",210,1,"M","BCULT","BCULT","Bonus activité culturelle",1,null,null,null,null,"Bonus activité culturelle"]
["","",1,"","","Bonus sport",220,1,"M","BSPORT","BSPORT","Bonus sport",1,null,null,null,null,"Bonus sport"]
["","",1,"","","Bonus LV2",230,1,"M","BLANG","BLANG","Bonus LV2",1,null,null,null,null,"Bonus LV2"]
["","",0,"","","",null,null,null,null,null,null,null,null,null,null,null,0]
["","",0,"","",{"$f":"IF(I35=\"\",\"\",L35)","v":""},null,null,null,null,null,null,null,null,null,null,null,0]
["","",0,"","","",null,null,null,null,null,null,null,null,null,null,null,0]
["","",0,"","","",null,null,null,null,null,null,null,null,null,null,null,0]
["","",0,"","","",null,null,null,null,null,null,null,null,null,null,null,0]
["","",0,"","","",null,null,null,null,null,null,null,null,null,null,null,0]
[{"$f":"IF(I40=\"U\",\"UE\"&RIGHT(J40,2),\"\")","v":""},{"$f":"A40","v":""},0,"","","",null,null,null,null,null,null,null,null,null,null,null,0]
["","",0,{"$f":"IF(A41=\"\",\"\",G41)","v":""},{"$f":"IF(A41=\"\",\"\",L41)","v":""},{"$f":"IF(I41=\"\",\"\",L41)","v":""},null,null,null,null,null,null,null,null,null,null,null,0]
["","",0,"","","",null,null,null,null,null,null,null,null,null,null,null,0]
["","",0,"","","",null,null,null,null,null,null,null,null,null,null,null,0]
["","",0,"","","",null,null,null,null,null,null,null,null,null,null,null,0]
["","",0,"","","",null,null,null,null,null,null,null,null,null,null,null,0]
["","",0,"","","",null,null,null,null,null,null,null,null,null,null,null,0]
["","",0,"","","",null,null,null,null,null,null,null,null,null,null,null,0]
["","",0,"","","",null,null,null,null,null,null,null,null,null,null,null,0]
["","",0,"","","",null,null,null,null,null,null,null,null,null,null,null,0]
["","",0,"","","",null,null,null,null,null,null,null,null,null,null,null,0]
["","",0,"","","",null,null,null,null,null,null,null,null,null,null,null,0]
["","",0,"","","",null,null,null,null,null,null,null,null,null,null,null,0]
["","",0,"","","",null,null,null,null,null,null,null,null,null,null,null,0]
["","",0,"","",""]
["","",1,{"$f":"IF(A55=\"\",\"\",G55)","v":""},{"$f":"IF(A55=\"\",\"\",L55)","v":""},{"$f":"IF(I55=\"\",\"\",L55)","v":""}]
["","",1,"","",""]
["","",1,"","",""]
["","",1,"","",""]
["",""]

{"sheet":"Aide","index":1,"n_rows":0,"n_cols":0,"rows_kept":0,"cut":false,"hidden":false,"merged":[]}